bitfinex/quotes_BTCUSD_20250814
["timestamp","ask_amount","ask_price","bid_price","bid_amount"]
[1755177470220,0.35471619,118570.0,118560.0,0.04207337]
[1755177470421,0.35165619,118570.0,118560.0,0.04207337]
[1755177470625,0.09072325,118570.0,118560.0,0.57035337]
[1755177470831,0.03279121,118570.0,118560.0,0.74207432]
[1755177471053,0.03279121,118570.0,118560.0,1.57895064]
[1755177471621,0.28419119,118570.0,118560.0,1.21894969]
[1755177471807,0.28019119,118570.0,118560.0,1.21794969]
[1755177472020,0.28419119,118570.0,118560.0,1.21894969]
[1755177472264,0.11551446,118570.0,118560.0,1.21794969]
[1755177472473,0.02479121,118570.0,118560.0,1.38564064]
[1755177472672,0.02679121,118570.0,118560.0,1.39067064]
[1755177472795,0.02979121,118570.0,118560.0,1.39067064]
[1755177473000,0.02979121,118570.0,118560.0,0.67710432]
[1755177473206,0.003,118570.0,118560.0,1.51398064]
[1755177473417,0.006,118570.0,118560.0,1.59770389]
[1755177473816,0.02779121,118570.0,118560.0,1.38664064]
[1755177474018,0.02479121,118570.0,118560.0,0.56827337]
[1755177474222,0.02779121,118570.0,118560.0,1.57584064]
[1755177474476,0.02979121,118570.0,118560.0,1.57584064]
[1755177474672,0.02679121,118570.0,118560.0,1.57787064]
[1755177474975,0.02679121,118570.0,118560.0,1.40614969]
[1755177475171,0.02879121,118570.0,118560.0,1.40714969]
[1755177475593,0.02679121,118570.0,118560.0,1.40614969]
[1755177475800,0.02679121,118570.0,118560.0,1.57484064]
[1755177475994,0.02679121,118570.0,118560.0,1.57584064]
[1755177476563,0.02679121,118570.0,118560.0,1.40714969]
[1755177476984,0.02679121,118570.0,118560.0,0.57019337]
[1755177477234,0.02679121,118570.0,118560.0,1.40706969]
[1755177477414,0.02679121,118570.0,118560.0,0.57019337]
[1755177477618,0.02679121,118570.0,118560.0,1.40706969]
[1755177478174,0.34565619,118570.0,118560.0,0.23019337]
[1755177478384,0.34871619,118570.0,118560.0,0.23019337]
[1755177478629,0.34871619,118570.0,118560.0,0.04207337]
[1755177479066,0.28125119,118570.0,118560.0,0.04207337]
[1755177479276,0.34871619,118570.0,118560.0,0.04207337]
[1755177479497,0.40045412,118570.0,118560.0,0.04207337]
[1755177479712,0.40045412,118570.0,118560.0,0.04107337]
[1755177479924,0.58849412,118570.0,118560.0,0.04107337]
[1755177480140,0.40145412,118570.0,118560.0,0.04107337]
[1755177480344,0.11051446,118570.0,118560.0,0.56911337]
[1755177480550,0.11051446,118570.0,118560.0,0.74183432]
[1755177480551,0.02979121,118570.0,118560.0,0.74183432]
[1755177480766,0.02979121,118570.0,118560.0,1.57871064]
[1755177481167,0.02979121,118570.0,118560.0,1.21894969]
[1755177481369,0.02979121,118570.0,118560.0,0.73880432]
[1755177481570,0.02979121,118570.0,118560.0,1.57568064]
[1755177481772,0.02479121,118570.0,118560.0,1.21694969]
[1755177481981,0.29903693,118570.0,118560.0,0.56907337]
[1755177482195,0.29903693,118570.0,118560.0,0.04207337]
[1755177482196,0.30409693,118570.0,118560.0,0.04207337]
[1755177482404,0.30409693,118570.0,118560.0,0.04107337]
[1755177482609,0.30109693,118570.0,118560.0,0.04107337]
[1755177482819,0.30309693,118570.0,118560.0,0.04107337]
[1755177483219,0.30109693,118570.0,118560.0,0.04107337]
[1755177483435,0.29909693,118570.0,118560.0,0.04007337]
[1755177483640,0.30309693,118570.0,118560.0,0.04107337]
[1755177484249,0.30409693,118570.0,118560.0,0.04207337]
[1755177484708,0.28425119,118570.0,118560.0,0.04207337]
[1755177484908,0.28325119,118570.0,118560.0,0.04107337]
[1755177485316,0.28625119,118570.0,118560.0,0.04207337]
[1755177485898,0.47417119,118570.0,118560.0,0.04207337]
[1755177486472,0.28625119,118570.0,118560.0,0.04207337]
[1755177486716,0.28319119,118570.0,118560.0,0.04207337]
[1755177486946,0.32564606,118570.0,118560.0,0.87894969]
[1755177487305,0.25139998,118570.0,118560.0,0.87894969]
[1755177487689,0.17710714,118590.0,118560.0,1.39079064]
[1755177488014,0.16863416,118600.0,118580.0,0.83687632]
[1755177488215,0.25135741,118600.0,118590.0,0.1878]
[1755177488411,0.16865265,118590.0,118580.0,0.1878]
[1755177488621,0.25978911,118600.0,118580.0,0.35646161]
[1755177488802,0.2529604,118620.0,118590.0,1.0086746]
[1755177489006,0.01527985,118620.0,118610.0,0.83687632]
[1755177489231,0.025301,118630.0,118620.0,0.50860563]
[1755177489405,0.16858229,118660.0,118630.0,0.1685907]
[1755177489608,0.08272325,118650.0,118640.0,1.19321307]
[1755177489812,0.01528877,118650.0,118640.0,1.36778632]
[1755177490217,0.01528877,118650.0,118640.0,1.53636352]
[1755177490579,0.24444666,118690.0,118660.0,0.1685474]
[1755177490779,0.24444666,118690.0,118680.0,0.83687632]
[1755177490780,0.1654873,118690.0,118680.0,0.83687632]
[1755177491055,0.1654873,118690.0,118670.0,0.35940205]
[1755177491258,0.33399389,118690.0,118670.0,0.19087]
[1755177491476,0.0980223,118690.0,118670.0,1.19627987]
[1755177491605,0.01529905,118690.0,118680.0,0.16852039]
[1755177491814,0.01529905,118690.0,118680.0,1.00854671]
[1755177492089,0.01529905,118690.0,118680.0,0.84002632]
[1755177492265,0.01529905,118690.0,118680.0,1.00854671]
[1755177492476,0.01529905,118690.0,118680.0,1.00539671]
[1755177492672,0.01529905,118690.0,118680.0,1.00854671]
[1755177492884,0.01529905,118690.0,118680.0,0.00315]
[1755177493061,0.01729905,118690.0,118670.0,1.19312931]
[1755177493262,0.01829905,118690.0,118680.0,0.51377689]
[1755177493467,0.01729905,118690.0,118680.0,0.70077364]
[1755177493667,0.0002,118720.0,118710.0,0.1684778]
[1755177494012,0.01547647,118720.0,118710.0,1.61878737]
[1755177494232,0.01547802,118720.0,118710.0,1.73268737]
[1755177494446,0.0002,118720.0,118710.0,1.73268737]
[1755177495298,0.0002,118720.0,118710.0,0.89581105]
[1755177495540,0.0002,118720.0,118710.0,1.73268737]
[1755177496600,0.0012,118720.0,118710.0,1.73368737]
[1755177497303,0.0012,118720.0,118710.0,0.70925105]
[1755177497507,0.0012,118720.0,118710.0,1.54612737]
[1755177497709,0.0012,118720.0,118710.0,1.61958737]
[1755177497926,0.0012,118720.0,118710.0,0.78271105]
[1755177498355,0.0012,118720.0,118710.0,1.61958737]
[1755177498544,0.0012,118720.0,118710.0,1.62158737]
[1755177499185,0.0002,118720.0,118710.0,1.61858737]
[1755177499566,0.0012,118720.0,118710.0,1.61958737]
[1755177499842,0.0002,118720.0,118710.0,1.45110957]
[1755177500058,0.0002,118720.0,118710.0,0.6999878]
[1755177500344,0.0032,118720.0,118710.0,0.53251]
[1755177500597,0.0032,118720.0,118710.0,1.36611632]
[1755177500897,0.0032,118720.0,118710.0,1.62046737]
[1755177501957,0.17166361,118720.0,118710.0,1.36599632]
[1755177502259,0.0032,118720.0,118710.0,1.36599632]
[1755177502475,0.0032,118720.0,118710.0,1.53762412]
[1755177503020,0.0032,118720.0,118710.0,1.62034737]
[1755177503292,0.0032,118720.0,118710.0,0.89737105]
[1755177504343,0.0032,118720.0,118710.0,1.01737105]
[1755177504934,0.01520264,118760.0,118750.0,1.34529737]
[1755177505192,0.01520264,118760.0,118750.0,1.61817062]
[1755177505409,0.18436879,118800.0,118770.0,0.16838169]
[1755177505713,0.28533077,118800.0,118780.0,1.02383632]
[1755177505983,0.02279536,118800.0,118790.0,0.83687632]
[1755177506278,0.18354476,118800.0,118790.0,0.83687632]
[1755177506513,0.0151946,118800.0,118790.0,0.83687632]
[1755177506935,0.0151946,118800.0,118790.0,1.00524066]
[1755177507150,0.0151946,118800.0,118790.0,0.83787632]
[1755177507352,0.0211946,118800.0,118790.0,1.34624066]
[1755177507808,0.0211946,118800.0,118790.0,1.34939066]
[1755177508015,0.0211946,118800.0,118790.0,1.43211391]
[1755177508444,0.0231946,118800.0,118790.0,0.59523759]
[1755177508656,0.0231946,118800.0,118790.0,1.43211391]
[1755177508890,0.0211946,118800.0,118790.0,1.61895391]
[1755177509099,0.0151946,118800.0,118790.0,1.61791391]
[1755177509307,0.0161946,118800.0,118790.0,1.61791391]
[1755177509510,0.0201946,118800.0,118790.0,1.61791391]
[1755177510166,0.0201946,118800.0,118790.0,1.43111391]
[1755177510368,0.0201946,118800.0,118790.0,0.78099759]
[1755177510491,0.0201946,118800.0,118790.0,1.61787391]
[1755177510693,0.0201946,118800.0,118790.0,0.78099759]
[1755177510900,0.0201946,118800.0,118790.0,1.61787391]
[1755177511089,0.0201946,118800.0,118790.0,1.43111391]
[1755177511291,0.0201946,118800.0,118790.0,1.53192066]
[1755177512173,0.0201946,118800.0,118790.0,1.34524066]
[1755177512390,0.18854476,118800.0,118790.0,0.34]
[1755177512528,0.19158476,118800.0,118790.0,0.18668]
[1755177512729,0.16836434,118790.0,118780.0,0.83687632]
[1755177512943,0.18355894,118790.0,118780.0,0.83687632]
[1755177513146,0.1683792,118780.0,118770.0,0.83687632]
[1755177513432,0.1683792,118780.0,118750.0,0.2052451]
[1755177513433,0.16839364,118770.0,118740.0,0.41260199]
[1755177513643,0.0151946,118770.0,118760.0,0.92497173]
[1755177513855,0.0151946,118770.0,118760.0,1.41274819]
[1755177514047,0.0151946,118770.0,118760.0,1.61252144]
[1755177514295,0.001,118800.0,118790.0,0.50836434]
[1755177514513,0.01622929,118800.0,118790.0,1.53495066]
[1755177514953,0.01522929,118800.0,118790.0,1.53495066]
[1755177515192,0.01522929,118800.0,118790.0,0.69492434]
[1755177515425,0.01522929,118800.0,118790.0,1.36343632]
[1755177515665,0.18661945,118800.0,118790.0,0.52656]
[1755177515882,0.18661945,118800.0,118780.0,0.001]
[1755177515883,0.16836434,118790.0,118780.0,0.18752]
[1755177516105,0.18663363,118790.0,118780.0,0.18652]
[1755177516342,0.01522929,118790.0,118780.0,0.18652]
[1755177516586,0.01522929,118790.0,118780.0,0.69489851]
[1755177516796,0.18359363,118790.0,118780.0,0.52652]
[1755177517002,0.01522929,118790.0,118780.0,0.52652]
[1755177517208,0.01922929,118790.0,118780.0,1.36439632]
[1755177517613,0.01922929,118790.0,118780.0,1.53277483]
[1755177517794,0.01922929,118790.0,118780.0,0.69905851]
[1755177518033,0.01922929,118790.0,118780.0,1.53277483]
[1755177518489,0.18959363,118790.0,118780.0,0.341]
[1755177518702,0.18559363,118790.0,118780.0,0.34]
[1755177518907,0.18672363,118790.0,118780.0,0.34]
[1755177519118,0.01522929,118790.0,118780.0,0.50837851]
[1755177519288,0.01522929,118790.0,118780.0,0.34]
[1755177519522,0.18672363,118790.0,118780.0,0.341]
[1755177519706,0.26944688,118790.0,118780.0,0.52636]
[1755177519913,0.01522929,118790.0,118780.0,0.52636]
[1755177520045,0.01622929,118790.0,118780.0,0.69473851]
[1755177520458,0.18459363,118790.0,118780.0,0.34]
[1755177520663,0.18772363,118790.0,118780.0,1.36323632]
[1755177520933,0.27044688,118790.0,118780.0,1.02323632]
[1755177521633,0.27044688,118790.0,118780.0,0.18636]
[1755177522022,0.27044688,118790.0,118780.0,1.02323632]
[1755177523063,0.27044688,118790.0,118780.0,0.18636]
[1755177523267,0.27044688,118790.0,118780.0,1.02323632]
[1755177523692,0.27044688,118790.0,118780.0,0.18636]
[1755177523923,0.16837851,118780.0,118770.0,1.17687632]
[1755177524150,0.1836078,118780.0,118770.0,1.36307632]
[1755177524389,0.16839269,118770.0,118760.0,0.407465]
[1755177524615,0.18675198,118770.0,118760.0,0.253625]
[1755177525267,0.01522929,118770.0,118760.0,0.253625]
[1755177525478,0.18362198,118770.0,118760.0,0.253625]
[1755177525725,0.01522929,118770.0,118760.0,0.253625]
[1755177525935,0.01522929,118770.0,118760.0,1.09050132]
[1755177526149,0.01522929,118770.0,118760.0,1.25890819]
[1755177526360,0.01522929,118770.0,118760.0,1.09050132]
[1755177526561,0.18462198,118770.0,118760.0,0.067465]
[1755177526770,0.18775198,118770.0,118760.0,0.253545]
[1755177527179,0.18775198,118770.0,118760.0,0.25345438]
[1755177527392,0.18775198,118770.0,118760.0,0.18608]
[1755177527594,0.16842105,118750.0,118740.0,0.067465]
[1755177527805,0.16842105,118750.0,118740.0,1.43042132]
[1755177527806,0.18365034,118750.0,118740.0,1.43042132]
[1755177528024,0.01522929,118750.0,118740.0,1.59885655]
[1755177528230,0.01522929,118750.0,118740.0,1.43042132]
[1755177528430,0.01522929,118750.0,118740.0,1.44288225]
[1755177528835,0.01522929,118750.0,118740.0,1.44488225]
[1755177529020,0.01522929,118750.0,118740.0,1.44688225]
[1755177529240,0.01522929,118750.0,118740.0,1.61847748]
[1755177529658,0.01522929,118750.0,118740.0,1.45004225]
[1755177529813,0.18365034,118750.0,118740.0,0.597425]
[1755177530022,0.01522929,118750.0,118740.0,1.43430132]
[1755177530225,0.01522929,118750.0,118740.0,0.597425]
[1755177530598,0.01522929,118750.0,118740.0,1.43430132]
[1755177530810,0.01522929,118750.0,118740.0,1.60273655]
[1755177531015,0.01522929,118750.0,118740.0,1.43430132]
[1755177531335,0.18365034,118750.0,118740.0,1.43230132]
[1755177531557,0.18365034,118750.0,118740.0,1.43030132]
[1755177531558,0.01522929,118750.0,118740.0,1.43030132]
[1755177531779,0.01522929,118750.0,118740.0,1.59973655]
[1755177531995,0.16840773,118760.0,118750.0,0.34]
[1755177532168,0.18383147,118760.0,118750.0,1.17687632]
[1755177532585,0.18383147,118760.0,118750.0,0.34]
[1755177532782,0.18696147,118760.0,118750.0,1.17687632]
[1755177532989,0.16842105,118750.0,118740.0,0.001]
[1755177533164,0.26656804,118750.0,118740.0,0.18584]
[1755177533780,0.26969804,118750.0,118740.0,0.18584]
[1755177534391,0.26656804,118750.0,118740.0,0.253305]
[1755177534771,0.26969804,118750.0,118740.0,1.43018132]
[1755177534987,0.26969804,118750.0,118740.0,0.34]
[1755177535195,0.16844942,118730.0,118720.0,0.253185]
[1755177535400,0.26972641,118730.0,118720.0,0.067465]
[1755177535623,0.16846361,118720.0,118710.0,0.18572]
[1755177535828,0.2666106,118720.0,118710.0,0.18572]
[1755177536046,0.1684778,118710.0,118700.0,0.601545]
[1755177536260,0.18390154,118710.0,118700.0,0.261545]
[1755177536459,0.01542374,118710.0,118700.0,0.27365818]
[1755177536671,0.18390154,118710.0,118700.0,0.27365818]
[1755177536914,0.18390154,118710.0,118700.0,1.1105345]
[1755177537117,0.01542374,118710.0,118700.0,1.09842132]
[1755177537319,0.18390154,118710.0,118700.0,1.43842132]
[1755177538605,0.18490154,118710.0,118700.0,1.43842132]
[1755177538832,0.01642374,118710.0,118700.0,1.43842132]
[1755177539044,0.01642374,118710.0,118640.0,1e-08]
[1755177539045,0.025,118660.0,118640.0,1e-08]
[1755177539262,0.16867379,118580.0,118550.0,0.025]
[1755177539413,0.16867673,118570.0,118560.0,0.18215337]
[1755177539618,0.16867673,118570.0,118560.0,0.17899337]
[1755177539786,0.18405082,118570.0,118560.0,0.17899337]
[1755177540419,0.18405082,118570.0,118560.0,0.04007337]
[1755177540659,0.16867379,118580.0,118560.0,0.22555337]
[1755177540862,0.01538389,118580.0,118560.0,0.40267832]
[1755177541065,0.16867673,118570.0,118560.0,0.04007337]
[1755177541261,0.16867673,118570.0,118560.0,0.04107337]
[1755177541467,0.16866498,118580.0,118560.0,1.06346969]
[1755177541667,0.16867673,118570.0,118560.0,0.22559337]
[1755177541936,0.16867673,118570.0,118560.0,1.06562969]
[1755177542140,0.16867673,118570.0,118560.0,1.21694969]
[1755177542289,0.16867673,118570.0,118560.0,0.22555337]
[1755177543452,0.16967673,118570.0,118560.0,0.22555337]
[1755177544199,0.17167673,118570.0,118560.0,1.06242969]
[1755177544635,0.003,118570.0,118560.0,1.40558969]
[1755177544892,0.18699028,118570.0,118560.0,1.40558969]
[1755177545529,0.01830791,118570.0,118560.0,1.69782064]
[1755177545977,0.18698464,118570.0,118560.0,1.34364969]
[1755177546092,0.18698464,118570.0,118560.0,0.56547337]
[1755177546292,0.18598464,118570.0,118560.0,0.56547337]
[1755177546959,0.18598464,118570.0,118560.0,0.63293837]
[1755177547159,0.01530791,118570.0,118560.0,0.80467932]
[1755177547376,0.01530791,118570.0,118560.0,0.92217932]
[1755177547603,0.01530791,118570.0,118560.0,0.92317932]
[1755177548011,0.01530791,118570.0,118560.0,1.40596469]
[1755177548216,0.01530791,118570.0,118560.0,1.75997564]
[1755177549030,0.01530791,118570.0,118560.0,1.76097564]
[1755177551640,0.01530791,118570.0,118560.0,1.84369889]
[1755177552037,0.0384,118590.0,118580.0,0.5086625]
[1755177552249,0.01520766,118590.0,118580.0,1.53374882]
[1755177552467,0.01520766,118590.0,118580.0,1.65124882]
[1755177552695,0.01520766,118590.0,118580.0,0.6937825]
[1755177552916,0.01520766,118590.0,118580.0,1.53065882]
[1755177553119,0.01520766,118590.0,118580.0,1.53370882]
[1755177553359,0.01520766,118590.0,118580.0,1.34553882]
[1755177553561,0.01520766,118590.0,118580.0,1.53065882]
[1755177553763,0.01620766,118590.0,118580.0,1.53065882]
[1755177554175,0.18485594,118590.0,118580.0,1.17687632]
[1755177554427,0.01620766,118590.0,118580.0,0.52471585]
[1755177554629,0.18485594,118590.0,118580.0,0.52471585]
[1755177554892,0.18485594,118590.0,118580.0,0.33963585]
[1755177555063,0.18485594,118590.0,118580.0,1.36151217]
[1755177555505,0.18485594,118590.0,118580.0,0.52463585]
[1755177555688,0.18485594,118590.0,118580.0,1.36151217]
[1755177556033,0.16867588,118580.0,118560.0,0.11058837]
[1755177556233,0.16867673,118570.0,118560.0,0.94441469]
[1755177556504,0.18388439,118570.0,118560.0,1.12933469]
[1755177556721,0.18388439,118570.0,118560.0,0.10753837]
[1755177556878,0.18663788,118570.0,118560.0,1.12933469]
[1755177557089,0.17164673,118570.0,118560.0,1.12933469]
[1755177557298,0.17164673,118570.0,118560.0,1.13133469]
[1755177557466,0.17164673,118570.0,118560.0,1.13233469]
[1755177557663,0.17164673,118570.0,118560.0,1.13033469]
[1755177558043,0.17364673,118570.0,118560.0,1.47033469]
[1755177558219,0.00497,118570.0,118560.0,1.13033469]
[1755177558421,0.002,118570.0,118560.0,1.63902564]
[1755177558862,0.002,118570.0,118560.0,1.64107564]
[1755177559068,0.002,118570.0,118560.0,1.75857564]
[1755177559506,0.003,118570.0,118560.0,1.84129889]
[1755177560057,0.08472325,118570.0,118560.0,0.04007337]
[1755177560261,0.09446258,118570.0,118560.0,0.04107337]
[1755177560630,0.25239998,118570.0,118560.0,1.22094969]
[1755177560865,0.25239998,118570.0,118560.0,1.21994969]
[1755177561045,0.25139998,118570.0,118560.0,1.21694969]
[1755177561249,0.25239998,118570.0,118560.0,1.21694969]
[1755177561402,0.25239998,118570.0,118560.0,1.40162969]
[1755177562415,0.001,118570.0,118560.0,1.57232064]
[1755177562621,0.001,118570.0,118560.0,1.57537064]
[1755177562834,0.001,118570.0,118560.0,0.73344432]
[1755177563185,0.002,118570.0,118560.0,1.57032064]
[1755177563563,0.002,118570.0,118560.0,1.38564064]
[1755177563801,0.17067673,118570.0,118560.0,1.40158969]
[1755177563976,0.16867673,118570.0,118560.0,1.40158969]
[1755177564176,0.25139998,118570.0,118560.0,1.21694969]
[1755177564437,0.08569325,118570.0,118560.0,1.57020064]
[1755177564648,0.08272325,118570.0,118560.0,1.57120064]
[1755177564850,0.17706683,118600.0,118580.0,0.1686625]
[1755177565055,0.08272325,118590.0,118580.0,1.19005882]
[1755177565470,0.08272325,118590.0,118580.0,1.53005882]
[1755177565672,0.1877381,118610.0,118590.0,0.16864137]
[1755177565874,0.08272325,118600.0,118580.0,1.53849194]
[1755177566054,0.08372325,118600.0,118580.0,1.53849194]
[1755177566483,0.08372325,118600.0,118590.0,0.16864828]
[1755177566703,0.08272325,118600.0,118590.0,0.16864828]
[1755177566915,0.1706203,118610.0,118590.0,0.50864828]
[1755177567123,0.26103426,118610.0,118600.0,1.02131632]
[1755177567297,0.09241417,118610.0,118600.0,1.02131632]
[1755177567526,0.09241417,118610.0,118600.0,1.18995038]
[1755177567737,0.09241417,118610.0,118600.0,1.52995038]
[1755177568290,0.09041417,118610.0,118600.0,1.52995038]
[1755177568458,0.09041417,118610.0,118600.0,0.34]
[1755177568657,0.09041417,118610.0,118600.0,0.69299406]
[1755177568885,0.10587699,118610.0,118600.0,1.52987038]
[1755177569334,0.10787699,118610.0,118600.0,1.36123632]
[1755177569475,0.10587699,118610.0,118600.0,1.36123632]
[1755177569681,0.29680583,118610.0,118600.0,0.34]
[1755177570033,0.16863406,118600.0,118590.0,0.18428]
[1755177570165,0.27451105,118600.0,118590.0,0.52428]
[1755177570385,0.16864828,118590.0,118580.0,1.02111632]
[1755177570582,0.26980435,118590.0,118580.0,1.02111632]
[1755177570972,0.26980435,118590.0,118580.0,0.18424]
[1755177571158,0.26980435,118590.0,118580.0,0.591705]
[1755177571293,0.10115607,118590.0,118580.0,0.52424]
[1755177571506,0.09818607,118590.0,118580.0,0.52424]
[1755177571746,0.09818607,118590.0,118580.0,1.52977882]
[1755177571956,0.09818607,118590.0,118580.0,0.34]
[1755177572194,0.26980435,118590.0,118570.0,1.02099632]
[1755177572432,0.26980435,118590.0,118580.0,0.34]
[1755177572549,0.3182661,118590.0,118580.0,0.341]
[1755177572755,0.27280435,118590.0,118580.0,0.341]
[1755177572961,0.27280435,118590.0,118580.0,0.001]
[1755177573188,0.1686625,118580.0,118570.0,0.18408]
[1755177573383,0.01546282,118580.0,118570.0,0.69580673]
[1755177574059,0.01546282,118580.0,118570.0,0.69275673]
[1755177574278,0.18412532,118580.0,118570.0,0.52408]
[1755177574418,0.30262603,118580.0,118570.0,0.34]
[1755177574612,0.26981857,118580.0,118570.0,0.34]
[1755177574817,0.26981857,118580.0,118570.0,0.524]
[1755177575018,0.26981857,118580.0,118570.0,0.69267673]
[1755177575019,0.09818607,118580.0,118570.0,0.69267673]
[1755177575198,0.09818607,118580.0,118570.0,0.524]
[1755177575405,0.09918607,118580.0,118570.0,0.524]
[1755177575619,0.10118607,118580.0,118570.0,0.69267673]
[1755177575831,0.10118607,118580.0,118570.0,0.524]
[1755177576055,0.29760927,118580.0,118570.0,0.524]
[1755177576267,0.29760927,118580.0,118560.0,0.38007337]
[1755177576268,0.16867673,118570.0,118560.0,0.38007337]
[1755177576479,0.09818607,118570.0,118560.0,0.38007337]
[1755177576684,0.10111607,118570.0,118560.0,0.38007337]
[1755177577071,0.2697928,118570.0,118560.0,0.38007337]
[1755177577287,0.2697928,118570.0,118560.0,0.04007337]
[1755177577288,0.31927461,118570.0,118560.0,0.04007337]
[1755177577497,0.32705961,118570.0,118560.0,0.38007337]
[1755177577699,0.32705961,118570.0,118560.0,0.04007337]
[1755177577903,0.52871754,118570.0,118560.0,0.04007337]
[1755177578129,0.55062313,118570.0,118560.0,0.04007337]
[1755177578337,0.52871754,118570.0,118560.0,0.04007337]
[1755177578543,0.29539573,118570.0,118560.0,0.04007337]
[1755177578758,0.4613778,118570.0,118560.0,0.04007337]
[1755177578968,0.2785778,118570.0,118560.0,0.04007337]
[1755177579173,0.10597107,118570.0,118560.0,0.87694969]
[1755177579374,0.2668628,118570.0,118560.0,0.87694969]
[1755177579577,0.10018607,118570.0,118560.0,0.87694969]
[1755177579778,0.2688628,118570.0,118560.0,0.04007337]
[1755177580094,0.28857317,118570.0,118560.0,0.04007337]
[1755177580391,0.29635582,118570.0,118560.0,0.04007337]
[1755177580868,0.28857317,118570.0,118560.0,0.04007337]
[1755177581083,0.10118607,118570.0,118560.0,0.20876432]
[1755177581277,0.01846282,118570.0,118560.0,1.38886064]
[1755177581846,0.01846282,118570.0,118560.0,1.50306064]
[1755177582516,0.2698628,118570.0,118560.0,0.56371337]
[1755177582898,0.2698628,118570.0,118560.0,1.40058969]
[1755177583227,0.2698628,118570.0,118560.0,0.56371337]
[1755177583432,0.2698628,118570.0,118560.0,0.22371337]
[1755177583598,0.2727928,118570.0,118560.0,0.22371337]
[1755177583993,0.2727928,118570.0,118560.0,0.04007337]
[1755177584205,0.4563528,118570.0,118560.0,0.04007337]
[1755177584572,0.2727928,118570.0,118560.0,0.04007337]
[1755177584990,0.3392587,118570.0,118560.0,0.04007337]
[1755177585195,0.34704649,118570.0,118560.0,0.04007337]
[1755177585376,0.38677517,118570.0,118560.0,0.04007337]
[1755177586024,0.37677517,118570.0,118560.0,1e-08]
[1755177586162,0.74077517,118570.0,118560.0,1e-08]
[1755177586371,1.60669106,118570.0,118560.0,1e-08]
[1755177586572,0.16871941,118540.0,118530.0,0.0004]
[1755177586782,0.47397637,118540.0,118530.0,0.0004]
[1755177587407,0.29061637,118540.0,118530.0,0.0004]
[1755177587611,0.47393637,118540.0,118530.0,0.0004]
[1755177587989,0.25144266,118540.0,118530.0,0.0004]
[1755177588691,0.21137266,118540.0,118530.0,0.0014]
[1755177589091,0.55437266,118540.0,118530.0,0.0014]
[1755177589709,0.55437266,118540.0,118530.0,1e-08]
[1755177589917,0.55437266,118540.0,118520.0,1e-08]
[1755177589918,0.16873365,118530.0,118520.0,1e-08]
[1755177590125,0.33687133,118530.0,118520.0,1e-08]
[1755177590324,0.70187133,118530.0,118520.0,1e-08]
[1755177590577,0.72829759,118530.0,118520.0,1e-08]
[1755177590744,0.76547235,118530.0,118520.0,1e-08]
[1755177590943,0.76547235,118530.0,118500.0,0.00492]
[1755177590944,0.16876212,118510.0,118500.0,0.00492]
[1755177591214,0.47132762,118510.0,118500.0,0.00492]
[1755177591420,0.25441537,118510.0,118500.0,0.00492]
[1755177591620,0.43456537,118510.0,118500.0,0.00492]
[1755177591823,0.25148537,118510.0,118500.0,0.00492]
[1755177591959,0.43456537,118510.0,118500.0,0.00492]
[1755177592153,0.26580325,118510.0,118500.0,0.24116137]
[1755177592369,0.47902174,118510.0,118500.0,0.00492]
[1755177592569,0.48002174,118510.0,118500.0,0.00592]
[1755177592758,0.48295174,118510.0,118500.0,0.00592]
[1755177592970,0.48291174,118510.0,118500.0,0.00592]
[1755177593689,0.509338,118510.0,118500.0,0.00592]
[1755177593898,0.48291174,118510.0,118500.0,0.00592]
[1755177594113,0.52715579,118510.0,118500.0,0.00592]
[1755177594292,0.509338,118510.0,118500.0,0.00592]
[1755177597540,0.48291174,118510.0,118500.0,0.00592]
[1755177597955,0.49811868,118510.0,118500.0,0.00592]
[1755177599835,0.31535868,118510.0,118500.0,0.00592]
[1755177600178,0.49795868,118510.0,118500.0,0.00592]
[1755177600332,0.49795868,118510.0,118500.0,1e-08]
[1755177600333,0.83795868,118510.0,118500.0,1e-08]
[1755177600543,0.85572325,118510.0,118500.0,1e-08]
[1755177600744,0.88072325,118510.0,118500.0,1e-08]
[1755177601289,0.86195868,118510.0,118500.0,1e-08]
[1755177601495,0.85473143,118510.0,118500.0,1e-08]
[1755177601668,0.85473143,118510.0,118480.0,0.0178761]
[1755177601669,0.16879061,118490.0,118480.0,0.0178761]
[1755177601880,0.16881911,118470.0,118460.0,0.0004]
[1755177602045,0.2670293,118470.0,118460.0,0.0004]
[1755177602246,0.4495093,118470.0,118460.0,0.00362]
[1755177603456,0.4504293,118470.0,118460.0,0.00562]
[1755177604108,0.4503893,118470.0,118460.0,0.00562]
[1755177604314,0.51230999,118470.0,118460.0,0.00562]
[1755177604518,0.51230999,118470.0,118460.0,0.0024]
[1755177604681,0.51230999,118470.0,118460.0,0.0044]
[1755177604984,0.4503893,118470.0,118460.0,0.0044]
[1755177605412,0.48738192,118470.0,118460.0,0.0044]
[1755177605814,0.48734192,118470.0,118460.0,0.0044]
[1755177607058,0.48734192,118470.0,118450.0,1e-08]
[1755177607059,0.50883336,118460.0,118450.0,1e-08]
[1755177607270,0.60992473,118460.0,118450.0,1e-08]
[1755177607448,1.25884896,118460.0,118450.0,1e-08]
[1755177607649,0.44896473,118460.0,118450.0,1e-08]
[1755177607850,0.1843203,118460.0,118450.0,0.65187424]
[1755177608069,0.26704355,118460.0,118450.0,0.76866424]
[1755177608254,0.26704355,118460.0,118450.0,0.11974001]
[1755177608255,0.26904355,118460.0,118450.0,0.11974001]
[1755177608825,0.10021019,118460.0,118450.0,0.76866424]
[1755177609043,0.17190907,118500.0,118480.0,0.16880195]
[1755177609044,0.16878907,118500.0,118480.0,0.16880195]
[1755177609253,0.16878907,118500.0,118490.0,0.76866423]
[1755177609254,0.08272325,118500.0,118490.0,0.76866423]
[1755177609459,0.08272325,118500.0,118490.0,1.27745484]
[1755177609662,0.17723223,118520.0,118490.0,1.27745484]
[1755177609868,0.08272325,118510.0,118500.0,0.63695142]
[1755177610091,0.16872045,118540.0,118520.0,0.16873717]
[1755177610293,0.11809313,118540.0,118530.0,0.64892423]
[1755177610418,0.28681254,118540.0,118530.0,0.00295]
[1755177610816,0.25144266,118540.0,118530.0,0.00295]
[1755177611018,0.16873365,118530.0,118520.0,0.11679]
[1755177611329,0.2514569,118530.0,118520.0,0.11974]
[1755177612169,0.2514569,118530.0,118520.0,0.11679]
[1755177613213,0.16874789,118520.0,118510.0,0.00295]
[1755177613376,0.35153365,118530.0,118520.0,0.004]
[1755177613577,0.44208441,118530.0,118520.0,0.005]
[1755177613779,0.44204441,118530.0,118520.0,0.005]
[1755177614307,0.44517388,118530.0,118520.0,0.004]
[1755177614509,0.26341388,118530.0,118520.0,0.004]
[1755177614714,0.44197388,118530.0,118520.0,0.004]
[1755177614870,0.16874789,118520.0,118510.0,0.002]
[1755177615073,0.25147114,118520.0,118510.0,0.002]